bitfinex/quotes_BTCUSD_20250114
["timestamp","ask_amount","ask_price","bid_price","bid_amount"]
[1736872528016,0.35,95968.0,95967.0,0.05166]
[1736872528254,0.56386655,95968.0,95967.0,0.03082]
[1736872528456,0.3951,95964.0,95963.0,0.00094558]
[1736872528610,0.59762692,95964.0,95963.0,0.00094558]
[1736872528814,0.69762692,95964.0,95963.0,5.8e-07]
[1736872529427,0.59762692,95964.0,95963.0,5.8e-07]
[1736872529632,0.70185384,95964.0,95963.0,5.8e-07]
[1736872530034,0.70172847,95964.0,95963.0,5.8e-07]
[1736872530286,0.71072847,95964.0,95963.0,5.8e-07]
[1736872530862,0.72372847,95964.0,95963.0,5.8e-07]
[1736872531065,0.62614155,95964.0,95963.0,5.8e-07]
[1736872531259,0.61950155,95964.0,95963.0,5.8e-07]
[1736872531465,0.32210155,95964.0,95963.0,5.8e-07]
[1736872531714,0.32874155,95964.0,95963.0,5.8e-07]
[1736872531906,0.50574155,95964.0,95963.0,5.8e-07]
[1736872532068,0.49131408,95964.0,95963.0,5.8e-07]
[1736872532497,0.50031408,95964.0,95963.0,5.8e-07]
[1736872532686,0.49131408,95964.0,95963.0,5.8e-07]
[1736872533055,0.49931408,95964.0,95963.0,5.8e-07]
[1736872533293,0.49131408,95964.0,95963.0,5.8e-07]
[1736872533609,0.49931408,95964.0,95963.0,5.8e-07]
[1736872533958,0.48731408,95964.0,95963.0,0.05208527]
[1736872534119,0.49031408,95964.0,95963.0,0.05208527]
[1736872534531,0.48731408,95964.0,95963.0,0.05208527]
[1736872534909,0.48931408,95964.0,95963.0,0.05208527]
[1736872535317,0.49531408,95964.0,95963.0,0.05208527]
[1736872535483,0.48931408,95964.0,95963.0,0.05208527]
[1736872535910,0.49731408,95964.0,95963.0,0.05208527]
[1736872536116,0.48931408,95964.0,95963.0,0.05208527]
[1736872536372,0.36208716,95964.0,95963.0,0.05208527]
[1736872536515,0.37008716,95964.0,95963.0,0.05293887]
[1736872536718,0.36387973,95964.0,95963.0,0.05293887]
[1736872536915,0.36187973,95964.0,95963.0,0.05293887]
[1736872537125,0.49410665,95964.0,95963.0,0.05293887]
[1736872537581,0.1103651,95964.0,95963.0,0.05293887]
[1736872537784,0.0150051,95964.0,95963.0,0.05293887]
[1736872538413,0.0083651,95964.0,95963.0,0.05293887]
[1736872538910,0.0063651,95964.0,95963.0,0.05293887]
[1736872539320,0.0083651,95964.0,95963.0,0.05293887]
[1736872539464,0.0063651,95964.0,95963.0,0.05293887]
[1736872539905,0.0073651,95964.0,95963.0,0.05293887]
[1736872540285,0.00379257,95964.0,95963.0,0.05293887]
[1736872540503,0.00747596,95964.0,95963.0,0.05293887]
[1736872540710,0.00647596,95964.0,95963.0,0.05293887]
[1736872540882,0.00647596,95964.0,95963.0,0.15816579]
[1736872541083,0.01912806,95964.0,95963.0,0.15816579]
[1736872541311,0.00279257,95964.0,95963.0,0.05393887]
[1736872541536,0.00179257,95964.0,95963.0,0.05293887]
[1736872541929,0.00279257,95964.0,95963.0,0.05393887]
[1736872542142,0.00179257,95964.0,95963.0,0.05393887]
[1736872542383,0.00179257,95964.0,95963.0,0.05293887]
[1736872542585,0.00279257,95964.0,95963.0,0.15716579]
[1736872542793,0.00179257,95964.0,95963.0,0.16116579]
[1736872543467,0.00279257,95964.0,95963.0,0.16116579]
[1736872544093,0.00279257,95964.0,95963.0,0.15729116]
[1736872544456,0.00279257,95964.0,95963.0,0.16029116]
[1736872544658,0.00179257,95964.0,95963.0,0.16029116]
[1736872544904,0.00179257,95964.0,95963.0,0.15729116]
[1736872545056,0.00279257,95964.0,95963.0,0.15729116]
[1736872545267,0.00179257,95964.0,95963.0,0.16129116]
[1736872545699,0.00279257,95964.0,95963.0,0.15729116]
[1736872545897,0.00179257,95964.0,95963.0,0.23609116]
[1736872546099,0.00279257,95964.0,95963.0,0.24209116]
[1736872546301,0.00379257,95964.0,95963.0,0.24209116]
[1736872547582,0.00279257,95964.0,95963.0,0.23609116]
[1736872547733,0.00179257,95964.0,95963.0,0.24009116]
[1736872548352,0.00179257,95964.0,95963.0,0.23609116]
[1736872548554,0.00279257,95964.0,95963.0,0.23609116]
[1736872549105,0.00379257,95964.0,95963.0,0.24209116]
[1736872549511,0.00379257,95964.0,95963.0,0.24196579]
[1736872550640,0.00379257,95964.0,95963.0,0.24209116]
[1736872552619,0.00379257,95964.0,95963.0,0.39209116]
[1736872556868,0.00379257,95964.0,95963.0,1.89209116]
[1736872557706,0.00379257,95964.0,95963.0,1.90455398]
[1736872557906,0.00179215,95997.0,95963.0,1.90455398]
[1736872558074,0.00179215,95997.0,95996.0,0.208342]
[1736872558270,0.00179215,95997.0,95996.0,0.26042669]
[1736872558545,0.00179215,95997.0,95996.0,0.36465361]
[1736872559184,0.00379215,95997.0,95996.0,0.36477898]
[1736872559304,0.00194185,95997.0,95996.0,0.52651669]
[1736872560116,0.00194185,95997.0,95996.0,0.52639132]
[1736872560490,0.00194185,95997.0,95996.0,2.02651669]
[1736872560700,0.00194185,95997.0,95996.0,0.37639132]
[1736872560912,0.00194185,95997.0,95996.0,0.36465361]
[1736872561162,0.00194185,95997.0,95996.0,0.05608469]
[1736872561370,0.21028085,95997.0,95996.0,0.05608469]
[1736872561536,0.21028085,95997.0,95996.0,0.05208469]
[1736872561537,0.41015548,95997.0,95996.0,0.05208469]
[1736872561768,0.4153273,95997.0,95996.0,0.05708469]
[1736872561953,0.4153273,95997.0,95996.0,0.05908469]
[1736872562203,0.4153273,95997.0,95996.0,0.05708469]
[1736872562609,0.67415422,95997.0,95996.0,0.05708469]
[1736872563020,0.67415422,95997.0,95996.0,0.05208469]
[1736872563221,0.82415422,95997.0,95996.0,0.05208469]
[1736872563392,0.82415422,95997.0,95996.0,0.05308469]
[1736872563535,0.84710635,95997.0,95996.0,0.05308469]
[1736872563743,0.96300282,95997.0,95996.0,0.05308469]
[1736872563988,0.208409,95966.0,95963.0,0.0008536]
[1736872564348,0.0044431,95965.0,95963.0,0.0008536]
[1736872564545,0.30958819,95964.0,95963.0,0.0008536]
[1736872564758,0.40828563,95964.0,95963.0,0.0008536]
[1736872564967,0.41273565,95964.0,95963.0,0.0008536]
[1736872565665,0.69296257,95964.0,95963.0,0.0008536]
[1736872565869,0.30834863,95935.0,95934.0,0.01243094]
[1736872566114,0.30834863,95935.0,95926.0,0.0008538]
[1736872566115,0.208487,95929.0,95926.0,0.0008538]
[1736872566313,0.09987463,95927.0,95926.0,0.00100363]
[1736872566523,0.20489303,95927.0,95926.0,0.00100363]
[1736872566854,0.20489303,95927.0,95926.0,0.05308832]
[1736872569007,0.22789303,95927.0,95926.0,0.05308832]
[1736872569409,0.37989303,95927.0,95926.0,0.05308832]
[1736872569614,0.48411995,95927.0,95926.0,0.05308832]
[1736872569831,0.48311995,95927.0,95926.0,0.05308832]
[1736872570030,0.37889303,95927.0,95926.0,0.05308832]
[1736872570252,0.48611995,95927.0,95926.0,0.05308832]
[1736872570457,0.48511995,95927.0,95926.0,0.05308832]
[1736872570628,0.48811995,95927.0,95926.0,0.05308832]
[1736872571223,0.48511995,95927.0,95926.0,0.05308832]
[1736872571601,0.49411995,95927.0,95926.0,0.05408832]
[1736872572004,0.48511995,95927.0,95926.0,0.05308832]
[1736872572260,0.49311995,95927.0,95926.0,0.05408832]
[1736872572663,0.49011995,95927.0,95926.0,0.05308832]
[1736872572871,0.39489303,95927.0,95926.0,0.05408832]
[1736872573070,0.40441303,95927.0,95926.0,0.05408832]
[1736872573294,0.38741303,95927.0,95926.0,0.05308832]
[1736872573477,0.38441303,95927.0,95926.0,0.05308832]
[1736872573714,0.2780184,95927.0,95926.0,0.05308832]
[1736872573924,0.21441303,95927.0,95926.0,0.05308832]
[1736872574312,0.23441303,95927.0,95926.0,0.05308832]
[1736872574513,0.23441303,95927.0,95926.0,0.05408832]
[1736872574712,0.24641303,95927.0,95926.0,0.05408832]
[1736872574946,0.24641303,95927.0,95926.0,0.05308832]
[1736872575122,0.40541303,95927.0,95926.0,0.05408832]
[1736872575417,0.38741303,95927.0,95926.0,0.05308832]
[1736872575836,0.39641303,95927.0,95926.0,0.05408832]
[1736872576156,0.38741303,95927.0,95926.0,0.05308832]
[1736872576359,0.39041303,95927.0,95926.0,0.05408832]
[1736872576792,0.36389303,95927.0,95926.0,0.05408832]
[1736872577001,0.22041303,95927.0,95926.0,0.05408832]
[1736872577172,0.24041303,95927.0,95926.0,0.05408832]
[1736872577406,0.21741303,95927.0,95926.0,0.05408832]
[1736872577576,0.0120184,95927.0,95926.0,0.05408832]
[1736872577997,0.0110184,95927.0,95926.0,0.05408832]
[1736872578157,0.0050184,95927.0,95926.0,0.05308832]
[1736872578589,0.0110184,95927.0,95926.0,0.05408832]
[1736872578784,0.0110184,95927.0,95926.0,0.05308832]
[1736872578785,0.0060184,95927.0,95926.0,0.05308832]
[1736872579128,0.0100184,95927.0,95926.0,0.05308832]
[1736872581283,0.0050184,95927.0,95926.0,0.05308832]
[1736872581495,0.00652,95937.0,95926.0,0.05308832]
[1736872581496,0.09987463,95941.0,95926.0,0.15931524]
[1736872581710,0.0049341,95937.0,95927.0,0.10422692]
[1736872581914,0.1,95948.0,95927.0,0.15631161]
[1736872581915,0.09987463,95946.0,95927.0,0.15631161]
[1736872582329,0.09987463,95946.0,95933.0,0.208478]
[1736872582538,0.19987463,95948.0,95933.0,0.05208469]
[1736872582750,0.20843,95956.0,95933.0,0.05208469]
[1736872582751,0.09987463,95946.0,95935.0,0.208473]
[1736872582960,0.09987463,95953.0,95937.0,0.41694]
[1736872583163,0.10639463,95955.0,95950.0,0.208441]
[1736872583364,0.10639463,95955.0,95938.0,0.10422692]
[1736872583365,0.09987463,95955.0,95946.0,0.208449]
[1736872583628,0.00496564,95954.0,95947.0,0.10422692]
[1736872583858,0.00496564,95954.0,95953.0,0.208434]
[1736872584200,0.09987463,95967.0,95953.0,0.416868]
[1736872584507,0.00179277,95963.0,95953.0,0.46895269]
[1736872584710,0.00179277,95963.0,95953.0,0.26051869]
[1736872584938,0.09987463,95956.0,95953.0,0.05208469]
[1736872585121,0.09987463,95956.0,95953.0,0.05308469]
[1736872585122,0.51673263,95956.0,95953.0,0.05308469]
[1736872585324,0.12287463,95954.0,95953.0,0.05308469]
[1736872585528,0.55844962,95954.0,95953.0,0.05208469]
[1736872585750,0.55714678,95954.0,95953.0,0.05208469]
[1736872586526,0.45291986,95954.0,95953.0,0.05308469]
[1736872586900,0.57780378,95954.0,95953.0,0.05308469]
[1736872587697,0.57880378,95954.0,95953.0,0.05208469]
[1736872588108,0.58580378,95954.0,95953.0,0.05308469]
[1736872588302,0.47457686,95954.0,95953.0,0.05208469]
[1736872588506,0.39947686,95954.0,95953.0,0.05208469]
[1736872588709,0.38381986,95954.0,95953.0,0.05208469]
[1736872591547,0.11094523,95954.0,95953.0,0.05208469]
[1736872591891,0.01094523,95954.0,95953.0,0.05208469]
[1736872592443,0.00594523,95954.0,95953.0,0.05208469]
[1736872592650,0.001,95954.0,95953.0,0.05208469]
[1736872592850,0.001,95954.0,95953.0,0.05308469]
[1736872593210,0.1,95959.0,95953.0,0.05308469]
[1736872593395,0.00493546,95954.0,95953.0,0.05408469]
[1736872593595,0.30829063,95962.0,95953.0,0.05408469]
[1736872593596,0.1,95959.0,95953.0,0.05408469]
[1736872594115,0.00493863,95958.0,95953.0,0.05208469]
[1736872595349,0.65640763,95954.0,95953.0,0.05208469]
[1736872595556,0.83023303,95954.0,95953.0,0.04692495]
[1736872595763,0.58135563,95932.0,95931.0,0.01241083]
[1736872595965,0.58783563,95932.0,95931.0,0.01241083]
[1736872596111,0.59277016,95932.0,95931.0,0.01241083]
[1736872596519,0.59277016,95932.0,95907.0,0.208534]
[1736872596520,0.09987463,95927.0,95907.0,0.208534]
[1736872596834,0.48629914,95927.0,95907.0,0.208534]
[1736872596999,0.58629914,95927.0,95907.0,0.208534]
[1736872597805,0.00493351,95927.0,95914.0,0.208519]
[1736872598008,0.00493351,95927.0,95922.0,0.208501]
[1736872598212,0.09987463,95946.0,95934.0,0.208476]
[1736872598420,0.21020777,95963.0,95942.0,0.208458]
[1736872598421,0.09987463,95952.0,95942.0,0.208458]
[1736872598627,0.00648,95953.0,95929.0,0.0794]
[1736872598628,0.00641377,95945.0,95930.0,0.20647188]
[1736872598876,0.214917,95953.0,95931.0,0.10422692]
[1736872599294,0.00644132,95952.0,95931.0,0.10422692]
[1736872599898,0.00644132,95952.0,95934.0,0.00012537]
[1736872600104,0.09987463,95949.0,95931.0,0.04692]
[1736872600300,0.00648,95966.0,95931.0,0.04692]
[1736872600301,0.1,95943.0,95931.0,0.04692]
[1736872600480,0.208469,95938.0,95931.0,0.04692]
[1736872600677,0.21488553,95942.0,95931.0,0.255401]
[1736872600916,0.00641914,95937.0,95931.0,0.255401]
[1736872601094,0.1,95943.0,95931.0,0.255401]
[1736872601297,0.208441,95951.0,95931.0,0.255401]
[1736872601298,0.00641766,95936.0,95935.0,0.208473]
[1736872601511,0.208449,95947.0,95935.0,0.255393]
[1736872601732,0.1,95946.0,95935.0,0.255393]
[1736872602036,0.208461,95941.0,95935.0,0.04692]
[1736872602232,0.004,95942.0,95935.0,0.04692]
[1736872602452,0.00642358,95940.0,95935.0,0.04692]
[1736872602593,0.21488606,95941.0,95935.0,0.04692]
[1736872602790,0.208467,95938.0,95935.0,0.04692]
[1736872603035,0.231472,95936.0,95935.0,0.04692]
[1736872603272,0.43134663,95936.0,95935.0,0.04692]
[1736872603479,0.43776429,95936.0,95935.0,0.04692]
[1736872604060,0.43876429,95936.0,95935.0,0.04692]
[1736872604262,0.41476429,95936.0,95935.0,0.04692]
[1736872604466,0.10629229,95936.0,95935.0,0.04692]
[1736872604670,0.00841766,95936.0,95935.0,0.04692]
[1736872604993,0.002,95936.0,95935.0,0.336494]
[1736872605217,0.006,95936.0,95935.0,0.336494]
[1736872605423,0.001,95936.0,95935.0,0.336494]
[1736872605804,0.005,95936.0,95935.0,0.45211402]
[1736872606655,0.004,95936.0,95935.0,0.45211402]
[1736872606997,0.1,95957.0,95946.0,0.208448]
[1736872607214,0.208428,95956.0,95946.0,0.255368]
[1736872607410,0.21480977,95956.0,95946.0,0.255368]
[1736872607873,0.00638177,95956.0,95946.0,0.04692]
[1736872608232,0.00638177,95956.0,95953.0,0.208433]
[1736872608478,0.00648,95959.0,95953.0,0.04692]
[1736872608679,0.00638029,95955.0,95953.0,0.04692]
[1736872608884,0.002,95956.0,95954.0,0.208433]
[1736872609083,0.002,95956.0,95954.0,0.04692]
[1736872610144,0.00648,95959.0,95954.0,0.04692]
[1736872610372,0.002,95956.0,95954.0,0.04692]
[1736872610774,0.00648,95959.0,95954.0,0.04692]
[1736872610972,0.001,95956.0,95955.0,0.208431]
[1736872611173,0.001,95956.0,95955.0,0.255351]
[1736872611402,0.00648,95959.0,95955.0,0.04692]
[1736872611813,0.001,95956.0,95955.0,0.04692]
[1736872612218,0.12387463,95956.0,95955.0,0.04692]
[1736872612460,0.22387463,95956.0,95955.0,0.04692]
[1736872613022,0.22287463,95956.0,95955.0,0.04692]
[1736872615534,0.22687463,95956.0,95955.0,0.04692]
[1736872615783,0.56827399,95956.0,95955.0,0.04692]
[1736872615980,0.56572457,95956.0,95955.0,0.04692]
[1736872616351,0.208458,95943.0,95935.0,0.0008537]
[1736872616565,0.00400472,95942.0,95939.0,0.208463]
[1736872616995,0.09987463,95948.0,95939.0,0.416928]
[1736872617207,0.00399732,95941.0,95939.0,0.208463]
[1736872617381,0.01634013,95952.0,95940.0,0.208463]
[1736872617581,0.01634013,95952.0,95950.0,0.208439]
[1736872617844,0.00401015,95951.0,95950.0,0.208439]
[1736872618058,0.009,95956.0,95951.0,0.208439]
[1736872618254,0.09987463,95960.0,95951.0,0.256799]
[1736872618463,0.00401477,95955.0,95951.0,0.256799]
[1736872618669,0.003,95952.0,95951.0,0.04836]
[1736872618912,0.00401385,95954.0,95951.0,0.04836]
[1736872619130,0.09987463,95960.0,95951.0,0.04836]
[1736872619327,0.00401292,95953.0,95951.0,0.04836]
[1736872619487,0.09987463,95960.0,95951.0,0.04836]
[1736872619891,0.0040222,95959.0,95952.0,0.208437]
[1736872620116,0.00179277,95953.0,95952.0,0.256797]
[1736872620323,0.00179277,95953.0,95952.0,0.04836]
[1736872620526,0.1246674,95953.0,95952.0,0.04836]
[1736872620690,0.12868405,95953.0,95952.0,0.04836]
[1736872620884,0.00580942,95953.0,95952.0,0.04836]
[1736872621263,0.12868405,95953.0,95952.0,0.04836]
[1736872621398,0.22868405,95953.0,95952.0,0.04936]
[1736872622029,0.62381318,95953.0,95952.0,0.04936]
[1736872622280,0.62381318,95953.0,95952.0,0.04836]
[1736872622608,0.55861097,95953.0,95952.0,0.04836]
[1736872622835,0.37868405,95953.0,95952.0,0.04836]
[1736872623330,0.00580942,95953.0,95952.0,0.04836]
[1736872623750,0.00379277,95953.0,95952.0,0.04836]
[1736872623953,0.00879277,95953.0,95952.0,0.04836]
[1736872624172,0.00179277,95953.0,95952.0,0.04836]
[1736872624499,0.00979277,95953.0,95952.0,0.04836]
[1736872624701,0.00379277,95953.0,95952.0,0.04836]
[1736872624913,0.00379277,95953.0,95952.0,0.04936]
[1736872625938,0.00179277,95953.0,95952.0,0.04936]
[1736872626125,0.00179277,95953.0,95952.0,0.15358692]
[1736872626326,0.00179277,95953.0,95952.0,0.15458692]
[1736872627291,0.00179277,95953.0,95952.0,0.15271229]
[1736872627718,0.00279277,95953.0,95952.0,0.15671229]
[1736872627899,0.00279277,95953.0,95952.0,0.15658692]
[1736872629000,0.00279277,95953.0,95952.0,0.05236]
[1736872629606,0.00882108,95953.0,95952.0,0.05236]
[1736872629854,0.00279277,95953.0,95952.0,0.04936]
[1736872630242,0.00279277,95953.0,95952.0,0.05136]
[1736872630435,0.00179277,95953.0,95952.0,0.05036]
[1736872630626,0.00279277,95953.0,95952.0,0.15558692]
[1736872631003,0.00179277,95953.0,95952.0,0.15458692]
[1736872631271,0.00179277,95953.0,95952.0,0.15758692]
[1736872631685,0.00179277,95953.0,95952.0,0.15458692]
[1736872631872,0.00279277,95953.0,95952.0,0.15758692]
[1736872632075,0.00279277,95953.0,95952.0,0.15844062]
[1736872632281,0.00179277,95953.0,95952.0,0.15344062]
[1736872632573,0.00179277,95953.0,95952.0,0.15644062]
[1736872633061,0.00179277,95953.0,95952.0,0.15344062]
[1736872633241,0.00169703,95953.0,95952.0,0.15344062]
[1736872633543,0.00169703,95953.0,95952.0,0.15644062]
[1736872633852,0.00269703,95953.0,95952.0,0.15844062]
[1736872635817,0.00274899,95953.0,95952.0,0.0542137]
[1736872636014,0.10262362,95953.0,95952.0,0.0542137]
[1736872636223,0.10865345,95953.0,95952.0,0.0542137]
[1736872636648,0.10765345,95953.0,95952.0,0.0492137]
[1736872636847,0.10765345,95953.0,95952.0,0.0512137]
[1736872637059,0.10865345,95953.0,95952.0,0.0532137]
[1736872637274,0.54984328,95953.0,95952.0,0.0512137]
[1736872637675,0.64730375,95953.0,95952.0,0.0512137]
[1736872638011,0.58782084,95953.0,95952.0,0.0028537]
[1736872638443,0.59582084,95953.0,95952.0,0.0008537]
[1736872638614,0.58782084,95953.0,95952.0,0.0008537]
[1736872638979,0.60416329,95953.0,95952.0,0.0008537]
[1736872639500,0.60816329,95953.0,95952.0,0.0008537]
[1736872639662,0.61920152,95953.0,95952.0,0.0008537]
[1736872639858,0.62820152,95953.0,95952.0,0.0008537]
[1736872640785,0.73242844,95953.0,95952.0,0.0008537]
[1736872640998,0.67550152,95953.0,95952.0,0.0008537]
[1736872641196,0.55834663,95936.0,95935.0,0.0008537]
[1736872641455,0.68557355,95936.0,95935.0,0.0492137]
[1736872641667,0.69153304,95936.0,95935.0,0.0492137]
[1736872642308,0.69253304,95936.0,95935.0,0.0492137]
[1736872642460,0.69253304,95936.0,95935.0,0.0008537]
[1736872642882,0.69153304,95936.0,95935.0,0.0008537]
[1736872643231,0.69553304,95936.0,95935.0,0.0008537]
[1736872643438,0.60566563,95927.0,95926.0,0.0008538]
[1736872643653,0.73937255,95927.0,95926.0,0.0008538]
[1736872644242,0.74531681,95927.0,95926.0,0.0008538]
[1736872644744,0.94954373,95927.0,95926.0,0.0008538]
[1736872644949,0.208576,95888.0,95881.0,0.0008542]
[1736872645151,0.09987463,95889.0,95881.0,0.0492142]
[1736872645453,0.417162,95886.0,95881.0,0.0492142]
[1736872645808,0.41717,95884.0,95881.0,0.0492142]
[1736872646008,0.09987463,95882.0,95881.0,0.0492142]
[1736872646240,0.40846363,95882.0,95881.0,0.0492142]
[1736872646434,0.40846363,95882.0,95881.0,0.0502142]
[1736872646613,0.41569083,95882.0,95881.0,0.0502142]
[1736872647223,0.45040919,95882.0,95881.0,0.0502142]
[1736872647564,0.44269083,95882.0,95881.0,0.0502142]
[1736872647766,0.43869083,95882.0,95881.0,0.0502142]
[1736872648075,0.45904259,95882.0,95881.0,0.0502142]
[1736872648277,0.45904259,95882.0,95881.0,0.0492142]
[1736872649087,0.46552259,95882.0,95881.0,0.0492142]
[1736872649260,0.46387499,95882.0,95881.0,0.0492142]
[1736872649459,0.46587499,95882.0,95881.0,0.0492142]
[1736872649663,0.47287499,95882.0,95881.0,0.0492142]
[1736872649998,0.46387499,95882.0,95881.0,0.0492142]
[1736872650136,0.47087499,95882.0,95881.0,0.0492142]
[1736872650335,0.34787499,95882.0,95881.0,0.0492142]
[1736872650562,0.02693136,95882.0,95881.0,0.0492142]
[1736872650767,0.02452856,95882.0,95881.0,0.0492142]
[1736872651125,0.02435176,95882.0,95881.0,0.0492142]
[1736872651245,0.01735176,95882.0,95881.0,0.0242142]
[1736872651742,0.01735176,95882.0,95881.0,0.12844112]
[1736872651952,0.01635176,95882.0,95881.0,0.12844112]
[1736872652183,5.19e-05,95884.0,95882.0,0.208589]
[1736872652402,5.19e-05,95884.0,95883.0,0.10422692]
[1736872653940,0.0010519,95884.0,95883.0,0.10822692]
[1736872654501,0.0010519,95884.0,95883.0,0.13240692]
[1736872656029,0.0010519,95884.0,95883.0,0.28240692]
[1736872656882,0.0010519,95884.0,95883.0,0.28253229]
[1736872657118,0.09987463,95931.0,95915.0,0.0805]
[1736872657357,0.0066,95938.0,95928.0,0.208489]
[1736872657358,5.204e-05,95929.0,95928.0,0.208489]
[1736872657565,5.204e-05,95929.0,95928.0,0.31271592]
[1736872657890,5.204e-05,95929.0,95928.0,0.33689592]
[1736872658857,5.204e-05,95929.0,95928.0,0.34823744]
[1736872659465,5.204e-05,95929.0,95928.0,0.34923744]
[1736872659604,5.204e-05,95929.0,95928.0,0.34823744]
[1736872659972,5.204e-05,95929.0,95928.0,0.24801052]
[1736872660119,0.00105204,95929.0,95928.0,0.242669]
[1736872660328,5.204e-05,95929.0,95928.0,0.236669]
[1736872660528,5.204e-05,95929.0,95928.0,0.232669]
[1736872660736,0.00105204,95929.0,95928.0,0.242669]
[1736872660920,5.204e-05,95929.0,95928.0,0.236669]
[1736872661718,5.204e-05,95929.0,95928.0,0.02818]
[1736872661919,0.00738917,95929.0,95928.0,0.02818]
[1736872662171,0.00738917,95929.0,95928.0,0.02418]
[1736872662374,0.00838917,95929.0,95928.0,0.03418]
[1736872662575,0.00738917,95929.0,95928.0,0.02818]
[1736872662840,5.204e-05,95929.0,95928.0,0.13240692]
[1736872663023,0.00205204,95929.0,95928.0,0.12840692]
[1736872663257,5.204e-05,95929.0,95928.0,0.13040692]
[1736872663459,0.00205204,95929.0,95928.0,0.13040692]
[1736872663662,0.00205204,95929.0,95928.0,0.12840692]
[1736872663935,5.204e-05,95929.0,95928.0,0.12840692]
[1736872664120,0.00105204,95929.0,95928.0,0.13440692]
[1736872664283,0.00105204,95929.0,95928.0,0.13840692]
[1736872665538,5.204e-05,95929.0,95928.0,0.12840692]
[1736872665745,0.00105204,95929.0,95928.0,0.13740692]
[1736872666183,5.204e-05,95929.0,95928.0,0.13140692]
[1736872666354,0.00105204,95929.0,95928.0,0.13440692]
[1736872666717,5.204e-05,95929.0,95928.0,0.13240692]
[1736872666915,0.00105204,95929.0,95928.0,0.13840692]
[1736872667259,0.00284397,95929.0,95928.0,0.12840692]
[1736872668182,0.00284397,95929.0,95928.0,0.17015692]
[1736872668587,0.00284397,95929.0,95928.0,0.17415692]
[1736872668735,0.00384397,95929.0,95928.0,0.18115692]
[1736872668938,0.00184397,95929.0,95928.0,0.17415692]
[1736872669120,0.00184397,95929.0,95928.0,0.17015692]
[1736872669725,0.00184397,95929.0,95928.0,0.17315692]
[1736872669934,0.00284397,95929.0,95928.0,0.13740692]
[1736872670135,0.00184397,95929.0,95928.0,0.13140692]
[1736872670395,0.00284397,95929.0,95928.0,0.13540692]
[1736872670601,0.00284397,95929.0,95928.0,0.14040692]
[1736872671707,0.00184397,95929.0,95928.0,0.13340692]
[1736872671906,0.00184397,95929.0,95928.0,0.02418]
[1736872672115,0.00284397,95929.0,95928.0,0.03018]
[1736872672323,0.00184397,95929.0,95928.0,0.02818]
[1736872672614,0.00284397,95929.0,95928.0,0.03518]
[1736872672816,0.00284397,95929.0,95928.0,0.03118]
[1736872672977,0.00284397,95929.0,95928.0,0.02718]
[1736872673178,0.00384397,95929.0,95928.0,0.03318]
[1736872673493,0.00384397,95929.0,95928.0,0.13440692]
[1736872673895,0.00384397,95929.0,95928.0,0.13840692]
[1736872674739,0.00184397,95929.0,95928.0,0.13240692]
[1736872675222,0.00284397,95929.0,95928.0,0.13840692]
[1736872675430,0.00184397,95929.0,95928.0,0.02818]
[1736872675643,0.00284397,95929.0,95928.0,0.03418]
[1736872676518,0.00184397,95929.0,95928.0,0.02418]
[1736872676688,0.00284397,95929.0,95928.0,0.03318]
[1736872677972,0.10767543,95929.0,95928.0,0.03318]
[1736872678181,0.33405699,95929.0,95928.0,0.03318]
[1736872678395,0.39007613,95929.0,95928.0,0.03318]
[1736872678599,0.41131072,95929.0,95928.0,0.03318]
[1736872678817,0.41131072,95929.0,95928.0,0.03018]
[1736872679037,0.57219617,95929.0,95928.0,0.02618]
[1736872679237,0.65419617,95929.0,95928.0,0.02618]
[1736872679446,0.65619617,95929.0,95928.0,0.02418]
[1736872679624,0.09987463,95901.0,95898.0,0.208554]
[1736872679826,0.09987463,95901.0,95893.0,0.208564]
[1736872680059,0.09987463,95900.0,95893.0,0.208564]
[1736872680229,0.09987463,95891.0,95889.0,0.208573]
[1736872680444,0.09987463,95904.0,95890.0,0.10422692]
[1736872680663,0.09987463,95923.0,95912.0,0.208524]
[1736872680853,0.00724056,95900.0,95899.0,0.20867737]
[1736872681066,0.11166656,95929.0,95925.0,0.208494]
[1736872681278,0.1,95927.0,95922.0,0.208502]
[1736872681484,0.10166656,95929.0,95926.0,0.208494]
[1736872681685,0.10166656,95929.0,95926.0,0.441168]
[1736872681891,0.01079193,95929.0,95928.0,0.001]
[1736872682096,0.00579193,95929.0,95928.0,0.12840692]
[1736872682532,0.00179193,95929.0,95928.0,0.12840692]
[1736872682867,0.00279193,95929.0,95928.0,0.12840692]
[1736872683231,0.00579193,95929.0,95928.0,0.12840692]
[1736872683836,0.00579193,95929.0,95928.0,0.02418]
[1736872684236,0.00179193,95929.0,95928.0,0.02418]
[1736872684644,0.00179193,95929.0,95928.0,0.02918]
[1736872687335,0.10166656,95929.0,95928.0,0.02918]
[1736872687574,0.10766391,95929.0,95928.0,0.02918]
[1736872687829,0.10766391,95929.0,95928.0,0.0416382]
[1736872688050,0.10766391,95929.0,95928.0,0.0396382]
[1736872688515,0.10766391,95929.0,95928.0,0.0376382]
[1736872688768,0.10766391,95929.0,95928.0,0.0386382]
[1736872689001,0.10766391,95929.0,95928.0,0.02418]
[1736872689222,0.10766391,95929.0,95928.0,0.02618]
[1736872689432,0.00778928,95929.0,95928.0,0.236669]
[1736872689612,0.00778928,95929.0,95928.0,0.34089592]
[1736872689841,0.00179193,95929.0,95928.0,0.34089592]
[1736872691041,0.00179193,95929.0,95928.0,0.33689592]
[1736872691444,0.00479193,95929.0,95928.0,0.33689592]
[1736872692067,0.00479193,95929.0,95928.0,0.33889592]
[1736872692243,0.00179193,95929.0,95928.0,0.33974882]
[1736872692662,0.00279193,95929.0,95928.0,0.2405219]
[1736872692840,0.10266656,95929.0,95928.0,0.0320329]
[1736872693038,0.10166656,95929.0,95928.0,0.0270329]
[1736872693238,0.10773473,95929.0,95928.0,0.0270329]
[1736872694304,0.33922173,95929.0,95928.0,0.0270329]
[1736872694653,0.58922173,95929.0,95928.0,0.0250329]
[1736872694862,0.19987463,95926.0,95925.0,0.00014983]
[1736872695062,0.69628763,95917.0,95916.0,0.0124582]
[1736872695259,0.80051455,95917.0,95916.0,0.01295683]
[1736872695456,0.90474147,95917.0,95916.0,0.01295683]
[1736872695666,0.91122189,95917.0,95916.0,0.01295683]
[1736872695867,0.91122189,95917.0,95916.0,0.00049863]
[1736872696068,0.98922189,95917.0,95916.0,0.00049863]
[1736872696298,0.30845763,95885.0,95884.0,0.0008533]
[1736872696484,0.09987463,95869.0,95868.0,0.00332868]
[1736872696886,0.12417858,95869.0,95868.0,0.00332868]
[1736872697095,0.38061539,95869.0,95868.0,0.00332868]
[1736872697301,0.37931144,95869.0,95868.0,0.05543617]
[1736872697507,0.48353836,95869.0,95868.0,0.05543617]
[1736872697716,0.58776528,95869.0,95868.0,0.05548821]
[1736872698122,0.48353836,95869.0,95868.0,0.00338072]
[1736872698329,0.48353836,95869.0,95868.0,0.00438072]